[Event "1st FIDE Olympiad DIS 2023"]
[Site "Belgrade"]
[Date "2023.01.31"]
[Round "2.5"]
[White "Gruenfeld, Yehuda"]
[Black "Pavicevic, Jovan R"]
[Result "1/2-1/2"]
[ECO "C18"]
[WhiteElo "2414"]
[BlackElo "2214"]
[Annotator "TA"]
[PlyCount "108"]
[EventDate "2023.01.30"]
[EventType "team-tourn"]
[EventCountry "SRB"]
[SourceTitle "playchess.com"]
[Source "ChessBase"]
[SourceQuality "1"]
[WhiteTeam "Israel"]
[BlackTeam "Serbia"]
[WhiteTeamCountry "ISR"]
[BlackTeamCountry "SRB"]
[TimeControl "40/5400+30:1800+30"]

{[%evp 14,108,17,11,19,14,32,32,29,21,32,-79,48,43,50,35,58,19,18,22,16,9,23,10,33,21,20,0,7,0,22,0,0,0,31,27,20,0,183,136,201,216,2408,101,106,96,89,85,147,141,140,120,167,109,92,0,14,0,0,0,0,0,0,0,0,0,0,0,0,-6,47,54,61,68,68,68,68,67,60,45,66,0,0,0,0,0,0,-8,0,-60,-60,-60,-60,-67,-55,-52,-12]} 1. e4 {[%emt 0:00:03][%cal Be2e4,Be4e5][%mdl 32]} e6 {[%emt 0:00:06]} 2. d4 {[%emt 0:00:14]} d5 {[%emt 0:00:15]} 3. Nc3 {[%emt 0:00:14]} Bb4 {[%emt 0:00:23]} 4. e5 {[%emt 0:00:06]} c5 {[%emt 0:00:19]} 5. a3 {[%emt 0:00:04]} Bxc3+ {[%emt 0:00:13]} 6. bxc3 {[%emt 0:00:05]} Ne7 {[%emt 0:01:04]} 7. Qg4 {[%emt 0:00:20]} Kf8 {[%emt 0:00:00]} 8. a4 {[%emt 0:01:45]} Qc7 {[%emt 0:01:26] C18: French: 3 Nc3 Bb4: Main line: 7 h4 and 7 Qg4.} 9. Qd1 {[%emt 0:13:51]} Kg8 {[%emt 0:07:36]} 10. Nf3 {[%emt 0:02:02]} b6 {[%emt 0:08:28] White is slightly better.} 11. Ba3 {[%emt 0:04:39]} cxd4 {[%emt 0:07:44] [#]} 12. Qxd4 $146 {[%emt 0:00:45]} (12. Bxe7 $14 Qxe7 13. cxd4) ({Predecessor:} 12. Bxe7 Qxe7 13. cxd4 Qb4+ 14. Qd2 Qxd2+ 15. Nxd2 Nc6 16. Nb3 a5 17. Bb5 Bb7 18. Kd2 {1-0 Astroukh,V (2512)-Relyea,A (2332) Webchess op7 sf01 email 2019}) 12... Nec6 {[%emt 0:02:53]} (12... Nbc6 $17 13. Qd2 Nxe5) 13. Qe3 $14 {[%emt 0:03:44]} Ba6 {[%emt 0:04:25]} 14. Bd6 {[%emt 0:01:09]} Qc8 {[%emt 0:00:45]} 15. Bd3 {[%emt 0:00:30]} Na5 {[%emt 0:01:33]} 16. O-O {[%emt 0:00:56] Black is weak on the dark squares} Nc4 {[%emt 0:09:01]} 17. Qf4 {[%emt 0:02:50]} (17. Bxc4 {simplifies} Bxc4 18. Rfb1 Nc6 19. Nd2) 17... Nc6 {[%emt 0:05:33]} 18. Rfe1 {[%emt 0:08:26]} Qb7 {[%emt 0:08:16]} (18... h6 {with more complications.} 19. h4 Nb2 20. Bb5 Nc4) 19. Bxc4 {[%emt 0:08:01]} (19. Reb1 {is more complex.} Qd7 20. Bb4 h6 21. Re1) 19... Bxc4 {[%emt 0:00:23]} 20. Re3 {[%emt 0:00:05]} Ba6 {[%emt 0:07:50]} 21. h4 {[%emt 0:05:21]} (21. Nd4 {is interesting.} h6 22. Rg3 Qd7 23. h4) 21... Na5 {[%emt 0:03:59]} 22. Nd2 {[%emt 0:00:39][%cal Of4h6]} h6 {[%emt 0:05:17]} 23. Rg3 {[%emt 0:01:15]} Nc4 {[%emt 0:04:24]} 24. Nxc4 {[%emt 0:04:59]} Bxc4 {[%emt 0:00:04]} 25. Rd1 $40 {[%emt 0:00:48][%mdl 128] White is up to no good.} Kh7 $2 {[%emt 0:03:01]} (25... Rh7 $11) 26. Rd4 {[%emt 0:00:43]} (26. Qg4 Rhg8 $15) ({White should try} 26. Qf3 $18) 26... Rad8 {[%emt 0:02:04]} (26... Be2 $16) 27. Qf3 $18 {[%emt 0:01:07] Threatens to win with Rxc4.} (27. Qg4 Rhg8 $11) 27... Rd7 $2 {[%emt 0:00:05]} (27... Ba6 28. Rdg4 (28. Qg4 Rhg8 $16) 28... Rhg8) 28. h5 $2 {[%emt 0:02:25]} ({Worse is} 28. Qg4 Rg8 $11) (28. Rdg4 $1 $18 {[%csl Gg3][%cal Rg4g7] is the precise move to win.} f6 29. exf6) 28... Rg8 {[%emt 0:03:42]} 29. Rdg4 $1 {[%emt 0:00:49][%cal Of3f6] White has more active pieces.} Qc8 {[%emt 0:00:13]} 30. Ba3 {[%emt 0:04:58]} Qe8 {[%emt 0:01:30]} (30... Qd8 $142) 31. Bc1 {[%emt 0:01:45][%cal Oc1h6] Bxh6! is the strong threat.} Qf8 {[%emt 0:00:27]} 32. Kh2 {[%emt 0:01:27]} Rd8 {[%emt 0:01:33] [#]} (32... Rc7 $16) 33. Rf4 {[%emt 0:04:00]} (33. Qe3 $1 $18 {[%cal Og4g7] Strongly threatening Rxg7+!} Rc8 34. a5) 33... Rd7 $16 {[%emt 0:00:18][%cal Bd8d7,Bd7c7,Bc7c8][%mdl 32]} 34. Be3 {[%emt 0:00:30]} (34. Qe3 $16) 34... Rc7 $11 {[%emt 0:00:31]} 35. Bd2 {[%emt 0:04:08]} Ba6 {[%emt 0:01:38]} 36. Be3 $1 {[%emt 0:04:12]} Bb7 {[%emt 0:00:30] White must now prevent ...d4.} (36... Rxc3 $2 37. Rxf7 $18) 37. Bd4 {[%emt 0:00:07]} Ba6 {[%emt 0:01:59]} 38. Rfg4 {[%emt 0:00:16]} Rc8 {[%emt 0:00:51]} 39. Rf4 {[%emt 0:04:33]} Rc7 {[%emt 0:00:12]} 40. Qg4 {[%emt 0:00:07]} Qe8 {[%emt 0:02:41]} 41. Kg1 {[%emt 0:34:41]} Qf8 {[%emt 0:07:46]} ({Much less strong is} 41... Qxa4 42. Rxf7 Rxf7 43. Qg6+ Kh8 44. Qxf7 $16) (41... Kh8 $11) 42. Rgf3 $1 $14 {[%emt 0:00:00][%cal Of4f7,Bg3f3,Bf3f7,Bf7c7,Bc7c6,Bc6a6,Ba6a5][%mdl 32] Hoping for Rxf7!} Be2 {[%emt 0:02:20] [#]} 43. Rxf7 {[%emt 0:00:00]} Qxf7 {[%emt 0:05:55]} (43... Rxf7 $2 44. Qg6+ Kh8 45. Rxf7 $18) 44. Rxf7 {[%emt 0:00:00][%mdl 64] White threatens Qg6+ and mate. Discovered Attack} Bxg4 {[%emt 0:00:03]} 45. Rxc7 {[%emt 0:00:00][%mdl 4096] Endgame KRB-KRB} Ra8 {[%emt 0:01:35]} 46. Rc6 {[%emt 0:00:00]} Re8 {[%emt 0:01:11] [#]} 47. a5 {[%emt 0:00:00]} bxa5 $11 {[%emt 0:02:15]} 48. Ra6 {[%emt 0:00:00]} Bxh5 {[%emt 0:00:24]} 49. Rxa5 {[%emt 0:00:00]} Bg6 {[%emt 0:00:30]} 50. Ra2 {[%emt 0:00:00]} a5 {[%emt 0:00:32][%cal Ba7a5,Ba5a4][%mdl 32]} 51. f3 {[%emt 0:00:00]} (51. Rxa5 $11 Bxc2 52. f3) 51... Ra8 $15 {[%emt 0:00:54] Black is slightly better.} 52. Kf2 {[%emt 0:00:00]} a4 {[%emt 0:01:05]} 53. Ke3 {[%emt 0:00:00]} Be8 {[%emt 0:02:15]} 54. Bc5 {[%emt 0:00:00]} Kh8 {[%emt 0:00:55] White really could win this.   Weighted Error Value: White=0.28 (precise) /Black=0.23 (precise)} 1/2-1/2

[Event "1st FIDE Olympiad DIS 2023"]
[Site "Belgrade"]
[Date "2023.01.31"]
[Round "2.5"]
[White "Kevorkov, Artur"]
[Black "Soltanov, Serik"]
[Result "1/2-1/2"]
[ECO "B06"]
[WhiteElo "2158"]
[BlackElo "2266"]
[Annotator "TA"]
[PlyCount "32"]
[EventDate "2023.01.30"]
[EventType "team-tourn"]
[EventCountry "SRB"]
[SourceTitle "playchess.com"]
[Source "ChessBase"]
[SourceQuality "1"]
[WhiteTeam "Germany"]
[BlackTeam "Kazakhstan"]
[WhiteTeamCountry "GER"]
[BlackTeamCountry "KAZ"]
[TimeControl "40/5400+30:1800+30"]

{[%evp 9,32,134,138,119,116,103,110,93,114,93,60,70,97,86,168,158,162,122,129,105,106,0,135,0,116]} 1. e4 {[%emt 0:00:03]} g6 {[%emt 0:00:05]} 2. d4 {[%emt 0:00:06]} h5 {[%emt 0:00:14]} 3. Nc3 {[%emt 0:00:32] [#]} Nh6 $146 {[%emt 0:00:07]} ({Predecessor:} 3... Bg7 4. f4 a6 5. Nf3 c6 6. Bd3 d5 7. O-O Bg4 8. e5 e6 9. Ne2 h4 {0-1 Svidler,P (2694)-Nakamura,H (2736) Speed Chess Chess.com INT blitz 2021 (1.54)}) 4. Bc4 {[%emt 0:01:01]} c6 {[%emt 0:00:15]} 5. Nf3 {[%emt 0:04:04]} Na6 {[%emt 0:00:58]} 6. Bf4 {[%emt 0:26:22] B06: Modern Defence.} d6 {[%emt 0:11:46]} 7. Qd2 {[%emt 0:01:09] White has more active pieces.} Nc7 {[%emt 0:02:37]} 8. h3 {[%emt 0:02:25] White is better.} Be6 {[%emt 0:06:28]} 9. Bb3 {[%emt 0:03:36]} Bxb3 {[%emt 0:04:20]} 10. axb3 {[%emt 0:00:01]} Qd7 {[%emt 0:00:54]} 11. O-O {[%emt 0:09:54]} Ne6 {[%emt 0:08:38] [#]} (11... f6 $16) 12. Be3 $1 $18 {[%emt 0:00:06] And now d5 would win.} Nc7 {[%emt 0:03:20]} 13. Rfe1 {[%emt 0:02:42]} Bg7 {[%emt 0:00:46]} 14. Bf4 {[%emt 0:00:54]} Ne6 {[%emt 0:02:09]} 15. Be3 {[%emt 0:00:19]} Nc7 $1 {[%emt 0:00:14]} 16. Bf4 {[%emt 0:04:15]} Ne6 {[%emt 0:00:09] Weighted Error Value: White=0.36/Black=0.10 (very precise)} 1/2-1/2

[Event "1st FIDE Olympiad DIS 2023"]
[Site "Belgrade"]
[Date "2023.01.31"]
[Round "2.6"]
[White "Tonic, Milos"]
[Black "Streltsov, Alexey"]
[Result "0-1"]
[ECO "D31"]
[WhiteElo "2018"]
[BlackElo "2317"]
[Annotator "TA"]
[PlyCount "108"]
[EventDate "2023.01.30"]
[EventType "team-tourn"]
[EventCountry "SRB"]
[SourceTitle "playchess.com"]
[Source "ChessBase"]
[SourceQuality "1"]
[WhiteTeam "Serbia"]
[BlackTeam "Israel"]
[WhiteTeamCountry "SRB"]
[BlackTeamCountry "ISR"]
[TimeControl "40/5400+30:1800+30"]

{[%evp 16,108,11,13,15,11,13,0,3,0,4,8,30,-5,-7,0,0,-7,0,0,7,0,0,0,4,0,6,4,32,12,17,15,16,16,45,40,35,45,33,42,35,38,29,0,0,0,0,0,0,0,0,0,0,0,0,0,0,0,0,0,0,0,0,0,0,0,0,0,0,0,0,0,0,0,0,0,0,-61,0,0,0,0,0,-352,-343,-370,0,0,0,-44,0,-962,-718,-923,-795]} 1. c4 {[%emt 0:00:18]} e6 {[%emt 0:00:12]} 2. Nc3 {[%emt 0:00:31]} d5 {[%emt 0:00:06]} 3. cxd5 {[%emt 0:00:36]} exd5 {[%emt 0:00:05]} 4. d4 {[%emt 0:00:11]} c6 {[%emt 0:00:08]} 5. Bf4 {[%emt 0:00:22]} Nf6 {[%emt 0:00:33]} 6. e3 {[%emt 0:01:28]} Bf5 {[%emt 0:00:29]} 7. Bd3 {[%emt 0:01:40]} Bxd3 {[%emt 0:06:37]} 8. Qxd3 {[%emt 0:00:15]} Bd6 {[%emt 0:00:11]} 9. Nge2 {[%emt 0:01:52]} O-O {[%emt 0:00:10] D31: Queen's Gambit Declined: Semi-Slav without ...Nf6 (+ Marshall Gambit and Noteboom) and Exchange Variation lines without ...Nf6.} 10. O-O {[%emt 0:02:54]} Re8 {[%emt 0:00:28]} 11. Rae1 {[%emt 0:11:40] [#]} Bf8 $146 {[%emt 0:25:44] The position is equal.} ({Predecessor:} 11... Bxf4 12. Nxf4 Nbd7 13. f3 Qc7 14. Nh3 h6 15. Re2 Rad8 16. g4 Nf8 17. Rg2 Qe7 {1-0 Seidel,J (2036)-Kopylov,D (2128) Hofheim Spring op-A 4th 2016 (1)}) 12. h3 {[%emt 0:12:44]} Nh5 {[%emt 0:11:19]} 13. Bh2 {[%emt 0:01:56]} g6 {[%emt 0:00:10]} 14. Nf4 {[%emt 0:00:47]} Nxf4 {[%emt 0:04:35]} 15. Bxf4 {[%emt 0:00:15]} Nd7 {[%emt 0:00:08]} 16. f3 {[%emt 0:22:29]} Qf6 {[%emt 0:01:00]} 17. Bg3 {[%emt 0:02:51]} Bg7 {[%emt 0:02:24]} 18. Bf2 {[%emt 0:03:45]} Rad8 {[%emt 0:03:11]} 19. e4 {[%emt 0:02:43]} dxe4 {[%emt 0:04:11]} 20. fxe4 {[%emt 0:01:13]} Qd6 {[%emt 0:00:10] Threatens to win with ...Nc5.} 21. Rd1 {[%emt 0:04:08]} Qb4 {[%emt 0:02:41][%cal Od7f8]} 22. Qc2 {[%emt 0:04:02]} Nb6 {[%emt 0:01:02]} 23. a3 {[%emt 0:00:53]} Qc4 {[%emt 0:00:23]} 24. b3 {[%emt 0:00:40]} Qa6 {[%emt 0:00:10]} 25. a4 {[%emt 0:01:22]} Qa5 {[%emt 0:00:35]} 26. e5 {[%emt 0:01:50]} f5 {[%emt 0:08:47] Against Ne4} 27. exf6 {[%emt 0:05:06]} Bxf6 {[%emt 0:00:40]} 28. Ne4 {[%emt 0:01:09]} Be7 {[%emt 0:01:17]} 29. Nc5 {[%emt 0:01:19]} (29. Bg3 {with more complications.} Nd7 30. Kh2 Rf8 31. Rxf8+ Nxf8 32. Nc5) 29... Bxc5 {[%emt 0:00:20]} 30. dxc5 {[%emt 0:01:17]} Rxd1 {[%emt 0:00:44]} 31. Qxd1 {[%emt 0:02:01]} (31. Rxd1 $5 Nd5 $8 32. Rd4 $11) 31... Nd5 {[%emt 0:00:08]} 32. Qg4 {[%emt 0:05:01]} Qd2 {[%emt 0:03:09]} 33. Qd7 {[%emt 0:05:46][%csl LRb7,LRe8]} Rf8 {[%emt 0:00:11]} 34. Qe6+ {[%emt 0:00:09]} Kg7 {[%emt 0:00:07][%cal Bg8g7,Bg7h6,Bh6h5][%mdl 32]} 35. Qe5+ {[%emt 0:00:13]} Kh6 {[%emt 0:02:31]} 36. Bd4 {[%emt 0:01:59]} Rxf1+ {[%emt 0:08:45]} 37. Kxf1 {[%emt 0:00:01]} Qf4+ {[%emt 0:01:27]} 38. Qxf4+ {[%emt 0:00:44]} Nxf4 $11 {[%emt 0:00:07][%mdl 4096] Endgame KB-KN} 39. Be3 {[%emt 0:00:36]} g5 {[%emt 0:00:01]} 40. h4 {[%emt 0:00:43]} Kh5 {[%emt 0:02:35]} 41. hxg5 {[%emt 0:30:23]} Ne6 {[%emt 0:31:22]} 42. Ke2 {[%emt 0:00:00]} Kg4 {[%emt 0:00:00]} 43. Kd3 {[%emt 0:00:00] [#] Ke4 would be deadly.} Nxg5 {[%emt 0:00:00]} 44. Kd4 {[%emt 0:00:00]} Nf7 {[%emt 0:00:00]} 45. Bf2 {[%emt 0:00:00]} Kf4 {[%emt 0:00:00]} 46. Be1 {[%emt 0:00:00]} (46. b4 $11) 46... h5 {[%emt 0:00:00]} (46... Nd8 $15 47. g3+ Kf5) 47. b4 {[%emt 0:00:00]} Nd8 {[%emt 0:00:00]} 48. Bd2+ $1 {[%emt 0:00:00]} Kf5 {[%emt 0:00:00]} 49. b5 $2 {[%emt 0:00:00][%mdl 8192] [#]} (49. Bc3 $11) 49... Ne6+ $1 $19 {[%emt 0:00:00]} 50. Kc4 {[%emt 0:00:00]} Ke4 $2 {[%emt 0:00:00]} ({Better is} 50... Kg4 $19 {White must now prevent ...Kg3.} 51. Bc3 Kg3) 51. Kb4 $11 {[%emt 0:03:52]} Kd4 {[%emt 0:00:00]} 52. Be1 {[%emt 0:01:31]} Nf4 {[%emt 0:00:00] Hoping for ...Nd3+.} (52... Kd5 $5 {[%cal Re6f4]} 53. bxc6 Kxc6 $17) 53. Bc3+ $2 {[%emt 0:01:08][%mdl 8192]} (53. bxc6 $11 bxc6 54. Bf2+ Ke4 55. Ka5) 53... Kd5 {[%emt 0:00:00]} 54. bxc6 {[%emt 0:00:08]} Kxc6 {[%emt 0:00:00] Weighted Error Value: White=0.33/Black=0.16 (very precise)} (54... bxc6 $2 {too greedy.} 55. g3 Nd3+ 56. Ka5 $19) 0-1

[Event "1st FIDE Olympiad DIS 2023"]
[Site "Belgrade"]
[Date "2023.01.31"]
[Round "2.7"]
[White "Gurbanov, Andrei"]
[Black "Zivic, Dragan"]
[Result "1-0"]
[ECO "D00"]
[WhiteElo "2275"]
[BlackElo "2186"]
[Annotator "TA"]
[PlyCount "69"]
[EventDate "2023.01.30"]
[EventType "team-tourn"]
[EventCountry "SRB"]
[SourceTitle "playchess.com"]
[Source "ChessBase"]
[SourceQuality "1"]
[WhiteTeam "Israel"]
[BlackTeam "Serbia"]
[WhiteTeamCountry "ISR"]
[BlackTeamCountry "SRB"]
[TimeControl "40/5400+30:1800+30"]

{[%evp 9,69,0,8,3,5,5,4,-19,-16,-17,-22,-22,-16,-5,39,39,77,53,56,59,69,52,220,202,190,155,192,197,167,98,139,88,222,208,222,205,216,209,178,81,1844,1799,4778,4774,1904,1870,1047,537,537,531,529,521,517,519,521,521,771,777,764,754,685,658]} 1. d4 {[%emt 0:00:04]} Nf6 {[%emt 0:00:07]} 2. Nc3 {[%emt 0:00:10]} d5 {[%emt 0:00:55]} 3. Bf4 {[%emt 0:00:14]} c6 {[%emt 0:00:55]} 4. e3 {[%emt 0:00:38]} Bf5 {[%emt 0:01:16]} 5. Nf3 {[%emt 0:00:26]} h6 {[%emt 0:01:23]} 6. Ne5 {[%emt 0:01:01] D00: 1 d4 d5: Unusual lines.} e6 {[%emt 0:04:07]} 7. g4 {[%emt 0:02:34]} Bh7 {[%emt 0:02:43] [#]} 8. a3 $146 {[%emt 0:02:43] The position is equal.} ({Predecessor:} 8. h4 Nfd7 9. Bd3 Nxe5 10. Bxe5 Bxd3 11. cxd3 Nd7 12. Bg3 Be7 13. Kf1 Qb6 14. Qe2 {1-0 Naroditsky,D (2617)-Yu,Y (2716) Speed Chess Q2 blitz 2022 (13)}) 8... Nbd7 {[%emt 0:00:43]} 9. h4 {[%emt 0:01:11]} Nxe5 {[%emt 0:01:39]} 10. Bxe5 {[%emt 0:01:46]} Nd7 {[%emt 0:14:45]} 11. Bg3 {[%emt 0:02:50]} f6 {[%emt 0:04:31]} 12. Bd3 {[%emt 0:04:55]} Qe7 {[%emt 0:03:47][%cal Oh6h5]} 13. Bxh7 {[%emt 0:04:06]} Rxh7 {[%emt 0:00:07]} 14. Qd3 {[%emt 0:00:05]} Rh8 {[%emt 0:00:15]} 15. O-O-O {[%emt 0:01:14]} e5 $2 {[%emt 0:19:27]} ({Black should try} 15... Nb6 $14) 16. e4 $18 {[%emt 0:02:16]} dxe4 {[%emt 0:04:36]} 17. Qxe4 {[%emt 0:01:29]} O-O-O {[%emt 0:03:02]} 18. dxe5 {[%emt 0:08:37]} fxe5 {[%emt 0:03:14]} 19. Rhe1 {[%emt 0:00:50]} ({White should play} 19. f4 $18) 19... Qf6 {[%emt 0:13:56]} 20. Bxe5 {[%emt 0:08:38] White is much more active. The black rooks are badly placed.} ({Better is} 20. Qa4 a6 21. Qc4) 20... Qxf2 {[%emt 0:06:04] [#]} (20... Nxe5 $16 21. Qxe5 Bd6 22. Qxf6 gxf6) 21. Bd4 $1 {[%emt 0:20:28][%cal Be5d4,Bd4a7,Ba7e3][%mdl 32]} Qxh4 {[%emt 0:00:25]} 22. Bxa7 {[%emt 0:00:09] aiming for Na4.} Qg5+ {[%emt 0:04:28]} 23. Be3 {[%emt 0:04:23]} Qa5 {[%emt 0:01:17][%cal Of8a3]} 24. Na4 {[%emt 0:00:23]} (24. Rd3 $18 {and White stays clearly on top.}) 24... g6 $2 {[%emt 0:04:02][%mdl 8192] [#]} 25. Nb6+ $1 {[%emt 0:08:30][%mdl 512] White is clearly winning.} Nxb6 {[%emt 0:01:37]} (25... Kb8 26. Qf4+) 26. Rxd8+ {[%emt 0:00:36]} ({Stronger than} 26. Qxg6 Bxa3 27. Qe6+ (27. Bxb6 Bxb2+ {[%mdl 64] Decoy} 28. Kxb2 Qxb6+ 29. Kc1 Qb4 $17) 27... Kb8 28. Bxb6 Bxb2+ 29. Kxb2 Qxb6+ 30. Qb3 Qc5 $15) 26... Kxd8 {[%emt 0:00:16]} 27. Bxb6+ {[%emt 0:00:11]} Qxb6 {[%emt 0:00:05]} 28. Qe8+ {[%emt 0:00:14]} (28. Qxg6 Qf2 29. Qe8+ Kc7 $17) 28... Kc7 {[%emt 0:00:22] White must now prevent ...Qd4.} 29. Qe5+ {[%emt 0:00:10]} (29. Qxg6 $2 {loses.} Qf2 30. Rd1 Be7 $19) 29... Bd6 {[%emt 0:00:45]} 30. Qg7+ {[%emt 0:01:13]} Kb8 {[%emt 0:00:29]} 31. Qxh8+ {[%emt 0:00:11]} Ka7 {[%emt 0:00:04]} 32. Qxh6 {[%emt 0:01:45]} Qf2 {[%emt 0:00:23][%cal Rf2e1]} 33. Qe3+ {[%emt 0:00:11]} Qxe3+ {[%emt 0:00:04]} 34. Rxe3 {[%emt 0:00:01]} Bf4 {[%emt 0:00:08] [#]} 35. Kd2 $1 {[%emt 0:00:01] Weighted Error Value: White=0.34/Black=0.34} 1-0

[Event "1st FIDE Olympiad DIS 2023"]
[Site "Belgrade"]
[Date "2023.01.31"]
[Round "2.7"]
[White "Dorner, Matthias"]
[Black "Kozhabekov, Adilkhan"]
[Result "1/2-1/2"]
[ECO "A48"]
[WhiteElo "2180"]
[BlackElo "1939"]
[Annotator "TA"]
[PlyCount "42"]
[EventDate "2023.01.30"]
[EventType "team-tourn"]
[EventCountry "SRB"]
[SourceTitle "playchess.com"]
[Source "ChessBase"]
[SourceQuality "1"]
[WhiteTeam "Germany"]
[BlackTeam "Kazakhstan"]
[WhiteTeamCountry "GER"]
[BlackTeamCountry "KAZ"]
[TimeControl "40/5400+30:1800+30"]

{[%evp 11,42,0,7,0,9,-12,-1,-43,-47,-57,-56,-69,-23,-31,-27,-52,-27,-43,-41,-38,-37,-36,-31,-35,-23,-20,-20,-28,-28,-29,0,-21,0]} 1. d4 {[%emt 0:00:02]} Nf6 {[%emt 0:01:34]} 2. c3 {[%emt 0:00:06]} g6 {[%emt 0:05:02]} 3. Bf4 {[%emt 0:00:09]} Bg7 {[%emt 0:00:08]} 4. e3 {[%emt 0:00:14]} O-O {[%emt 0:00:14]} 5. Nd2 {[%emt 0:00:07]} d6 {[%emt 0:01:41]} 6. Ngf3 {[%emt 0:00:07]} Nbd7 {[%emt 0:03:46]} 7. Be2 {[%emt 0:00:59] A48: 1 d4 Nf6 2 Nf3 g6: Torre, London and Colle Systems.} Qe8 {[%emt 0:05:53]} 8. Nc4 {[%emt 0:00:35]} Nh5 {[%emt 0:04:26] [#]} 9. Bg3 $146 {[%emt 0:03:11]} ({Predecessor:} 9. Bg5 e5 10. h3 h6 11. Bh4 b6 12. Nfd2 Nhf6 13. O-O Bb7 14. dxe5 Nxe5 15. Nxe5 dxe5 {1-0 Cuello Alcaria,J (1926)-Monte,L (1532) Marplatense Elo op 2018 (8)}) 9... Nxg3 {[%emt 0:02:26]} 10. hxg3 {[%emt 0:00:06]} e5 {[%emt 0:00:12]} 11. dxe5 {[%emt 0:03:44]} Nxe5 {[%emt 0:06:34]} (11... dxe5 $15 {deserves consideration.} 12. Qc2 Nc5) 12. Ncxe5 {[%emt 0:00:48]} dxe5 {[%emt 0:00:12]} 13. Bc4 {[%emt 0:00:21]} Qe7 {[%emt 0:10:37]} (13... b5 $5 {[%cal Rb5c4]} 14. Bd5 Rb8 $15) 14. a4 {[%emt 0:01:07]} Bf5 {[%emt 0:19:10]} 15. Qb3 {[%emt 0:00:57]} c6 {[%emt 0:03:30]} 16. O-O {[%emt 0:01:14]} Rad8 {[%emt 0:03:00]} 17. Rfd1 {[%emt 0:01:42]} Bg4 {[%emt 0:01:41] Hoping for ...Rxd1+.} 18. Rxd8 {[%emt 0:01:01]} Rxd8 {[%emt 0:00:05]} 19. Nh2 {[%emt 0:00:37]} Bf5 {[%emt 0:00:44]} 20. Nf3 {[%emt 0:00:10]} Bg4 {[%emt 0:00:59]} 21. Nh2 {[%emt 0:00:17]} Bf5 {[%emt 0:00:32] Weighted Error Value: White=0.09 (flawless) /Black=0.11 (very precise)} 1/2-1/2

[Event "1st FIDE Olympiad DIS 2023"]
[Site "Belgrade"]
[Date "2023.01.31"]
[Round "2.8"]
[White "Ilic, Slobodan S"]
[Black "Aleksandrova, Aleksandra"]
[Result "0-1"]
[ECO "A10"]
[WhiteElo "2027"]
[BlackElo "1701"]
[Annotator "TA"]
[PlyCount "63"]
[EventDate "2023.01.30"]
[EventType "team-tourn"]
[EventCountry "SRB"]
[SourceTitle "playchess.com"]
[Source "ChessBase"]
[SourceQuality "1"]
[WhiteTeam "Bosnia  Herzegovina"]
[BlackTeam "Israel"]
[WhiteTeamCountry "BIH"]
[BlackTeamCountry "ISR"]
[TimeControl "40/5400+30:1800+30"]

{[%evp 9,63,32,52,34,57,41,39,35,39,-13,-10,-4,-22,-6,-25,-25,-37,-57,0,0,0,0,0,0,0,-8,-7,-21,0,0,0,-55,-58,-66,-56,-64,31,18,33,0,0,0,48,-28,12,-56,-55,-66,0,0,0,0,0,-1943,-1777,-29995]} 1. c4 {[%emt 0:00:15]} d6 {[%emt 0:00:02]} 2. Nf3 {[%emt 0:00:37]} c6 {[%emt 0:00:31]} 3. Nc3 {[%emt 0:00:40]} Nd7 {[%emt 0:00:49]} 4. g3 {[%emt 0:00:47]} e5 {[%emt 0:00:24]} 5. Bg2 {[%emt 0:00:23]} Be7 {[%emt 0:00:21]} 6. O-O {[%emt 0:00:32] A10: English Opening: Unusual Replies for Black.} a5 {[%emt 0:01:41] [#]} 7. d3 $146 {[%emt 0:01:33]} ({Predecessor:} 7. e3 Ngf6 8. Qc2 O-O 9. b3 Qc7 10. d4 Re8 11. Bb2 Nf8 12. Rad1 Bg4 13. dxe5 dxe5 {1-0 Collicott,P (1741)-Redmond,N (1577) GBR-ch U1750 op 104th 2017 (1)}) 7... h5 {[%emt 0:06:56]} 8. d4 {[%emt 0:05:50] White is slightly better.} h4 {[%emt 0:03:04]} 9. dxe5 {[%emt 0:05:17]} (9. c5 $14) 9... dxe5 $11 {[%emt 0:01:13]} 10. Qc2 {[%emt 0:02:27]} hxg3 {[%emt 0:02:36]} (10... h3 $5 11. Bh1 $8 Qc7 $11) 11. hxg3 {[%emt 0:00:22]} Qc7 {[%emt 0:03:46]} 12. Bg5 {[%emt 0:10:03]} Nc5 {[%emt 0:16:40]} 13. Be3 {[%emt 0:09:25]} Nh6 {[%emt 0:06:44]} ({Black should try} 13... Nf6 $15) 14. Bxc5 $1 {[%emt 0:10:39]} Bxc5 {[%emt 0:01:00]} 15. Na4 {[%emt 0:00:49]} Be7 {[%emt 0:04:34]} 16. c5 {[%emt 0:04:21]} Be6 {[%emt 0:06:03]} 17. e4 {[%emt 0:03:53]} Ng4 {[%emt 0:07:04]} 18. Rfe1 {[%emt 0:01:12]} Bd8 {[%emt 0:04:43]} 19. Nb6 {[%emt 0:04:23]} Ra6 {[%emt 0:05:28]} 20. Nc4 {[%emt 0:01:16]} (20. Qc3 $1 $11) 20... Be7 $15 {[%emt 0:01:40]} 21. Ne3 {[%emt 0:02:56]} Nxe3 {[%emt 0:05:38]} 22. Rxe3 {[%emt 0:00:15]} Qc8 {[%emt 0:00:43]} (22... g6 $15) 23. Nxe5 $14 {[%emt 0:09:42]} Bh3 {[%emt 0:01:47]} (23... Ra8 {seems wilder.} 24. Rd1 Bh3 25. Qb3 Be6) 24. Bf3 {[%emt 0:00:58]} (24. g4 {looks sharper.} Bxg4 25. Nxg4 Qxg4 26. Qb3) 24... Qe6 {[%emt 0:01:08]} 25. Nd3 {[%emt 0:03:47]} Qh6 {[%emt 0:01:25]} (25... Bg5 $11 {might be stronger.}) 26. Ree1 {[%emt 0:05:56]} (26. Qb3 $14 Bc8 27. Kf1 (27. Ne5 Qh2+ 28. Kf1 Qh3+ 29. Ke2 Qe6 $11)) 26... g5 {[%emt 0:04:59][%cal Bg7g5,Bg5g4,Bg4f3][%mdl 32]} 27. Ne5 {[%emt 0:07:07]} (27. Qb3 $11 Bc8 28. Rad1) 27... f6 $15 {[%emt 0:07:09]} 28. Nc4 {[%emt 0:03:01] [#] Black must now prevent e5.} Bxc5 $40 {[%emt 0:00:30][%mdl 128] Black has some attack.} ({Reject} 28... Bg4 29. Bg2 $11) (28... g4 $1 $15 29. Bh1 Bf1 {[%mdl 64] Discovered Attack, Decoy} 30. Kxf1 Qxh1+ 31. Ke2 Qf3+ 32. Kd2 Bxc5) 29. Ne3 {[%emt 0:00:41]} Bxe3 {[%emt 0:02:12]} 30. Rxe3 {[%emt 0:00:32] And now e5 would win.} g4 {[%emt 0:01:01]} 31. Qb3 $2 {[%emt 0:02:35][%mdl 8192]} gxf3 $19 {[%emt 0:00:47]} 32. Qd1 {[%emt 0:03:14] Weighted Error Value: White=0.32/Black=0.17 (very precise)} 0-1